bitfinex-derivatives/quotes_BTCF0:USTF0_20260131
["timestamp","ask_amount","ask_price","bid_price","bid_amount"]
[1769850871110,0.012033,83239.0,83227.0,0.25229043]
[1769850871306,0.012033,83239.0,83227.0,0.10828]
[1769850872512,0.27564252,83238.0,83226.0,0.14401043]
[1769850872711,0.21721219,83236.0,83225.0,0.14401043]
[1769850873914,0.21721219,83236.0,83224.0,0.29940005]
[1769850874311,0.27564252,83235.0,83220.0,0.14401043]
[1769850874517,0.20517919,83230.0,83215.0,0.29940005]
[1769850876005,0.21721319,83230.0,83215.0,0.29940005]
[1769850877715,0.012034,83233.0,83215.0,0.29940005]
[1769850877922,0.012034,83234.0,83217.0,0.27379839]
[1769850879420,0.012034,83232.0,83217.0,0.27379839]
[1769850879914,0.21721319,83230.0,83217.0,0.27379839]
[1769850880814,0.21721319,83230.0,83212.0,0.012037]
[1769850881014,0.29374219,83221.0,83201.0,0.27482569]
[1769850881318,0.20517919,83211.0,83203.0,0.27482569]
[1769850884621,0.20517919,83211.0,83201.0,0.10828]
[1769850884813,0.012037,83208.0,83201.0,0.10828]
[1769850885219,0.012037,83208.0,83198.0,0.27482569]
[1769850886018,0.012037,83208.0,83193.0,0.41883612]
[1769850886219,0.012038,83201.0,83189.0,0.10828]
[1769850886524,0.012039,83198.0,83189.0,0.38310569]
[1769850888125,0.012039,83198.0,83184.0,0.27482569]
[1769850888322,0.41035838,83194.0,83184.0,0.27482569]
[1769850891625,0.20517919,83194.0,83184.0,0.27482569]
[1769850892427,0.42239738,83194.0,83184.0,0.27482569]
[1769850892628,0.42239738,83194.0,83180.0,0.10832]
[1769850892819,0.41035838,83190.0,83180.0,0.10832]
[1769850893221,0.41035838,83190.0,83180.0,0.38314569]
[1769850893526,0.18895791,83190.0,83184.0,0.27482569]
[1769850893735,0.20517919,83194.0,83190.0,0.27482569]
[1769850893924,0.20517919,83200.0,83192.0,0.27384444]
[1769850895323,0.20517919,83202.0,83192.0,0.27384444]
[1769850895531,0.20417919,83202.0,83192.0,0.27384444]
[1769850895822,0.20517919,83202.0,83192.0,0.28588444]
[1769850897831,0.29374219,83205.0,83183.0,0.27482569]
[1769850898031,0.62488,83217.0,83185.0,0.27482569]
[1769850898032,0.20517919,83200.0,83185.0,0.27482569]
[1769850898333,0.20517919,83200.0,83190.0,0.27482569]
[1769850898534,0.20517919,83200.0,83192.0,0.27482569]
[1769850899036,0.20517919,83200.0,83186.0,0.95218569]
[1769850899437,0.20517919,83200.0,83185.0,0.012041]
[1769850899634,0.01204,83193.0,83179.0,0.003]
[1769850899834,0.29374219,83199.0,83179.0,0.003]
[1769850900034,0.29374219,83205.0,83180.0,0.27482569]
[1769850900337,0.012039,83196.0,83180.0,0.27482569]
[1769850900529,0.012039,83199.0,83182.0,0.27482569]
[1769850900734,0.10832,83207.0,83186.0,0.27482569]
[1769850900925,0.012038,83203.0,83188.0,0.26990957]
[1769850901430,0.012037,83209.0,83192.0,0.26990957]
[1769850901631,0.012037,83209.0,83194.0,0.26990957]
[1769850902839,0.012036,83215.0,83201.0,0.26150739]
[1769850903629,0.29374219,83227.0,83203.0,0.26150739]
[1769850903824,0.10832,83229.0,83203.0,0.26150739]
[1769850904025,0.10832,83229.0,83206.0,0.26150739]
[1769850904535,0.012035,83223.0,83206.0,0.26150739]
[1769850904731,0.012035,83226.0,83208.0,0.26150739]
[1769850905125,0.012035,83224.0,83208.0,0.26150739]
[1769850909536,0.29661602,83216.0,83197.0,0.2629775]
[1769850909744,0.29661602,83216.0,83198.0,0.10832]
[1769850909941,0.012037,83211.0,83198.0,0.10832]
[1769850910856,0.012037,83212.0,83198.0,0.35665175]
[1769850911155,0.012037,83212.0,83199.0,0.24833175]
[1769850911354,0.012037,83210.0,83198.0,0.10832]
[1769850914448,0.012037,83208.0,83198.0,0.10832]
[1769850915247,0.29661602,83210.0,83188.0,0.10832]
[1769850915446,0.012039,83200.0,83188.0,0.10832]
[1769850916148,0.012038,83202.0,83188.0,0.10832]
[1769850917253,0.012039,83201.0,83188.0,0.10832]
[1769850917453,0.30865502,83197.0,83188.0,0.10832]
[1769850917655,0.29661602,83197.0,83180.0,0.5712]
[1769850918755,0.012039,83198.0,83181.0,0.25872873]
[1769850921861,0.29661602,83202.0,83181.0,0.24668773]
[1769850922052,0.40481941,83201.0,83181.0,0.24668773]
[1769850922358,0.10820339,83200.0,83181.0,0.24668773]
[1769850922564,0.012039,83195.0,83181.0,0.24668773]
[1769850922856,0.012039,83195.0,83180.0,0.5712]
[1769850923159,0.30865502,83195.0,83180.0,0.5712]
[1769850925560,0.012039,83195.0,83180.0,0.5712]
[1769850926753,0.012039,83195.0,83181.0,0.25922278]
[1769850935153,0.29661602,83198.0,83179.0,0.10832]
[1769850935356,0.29661602,83185.0,83168.0,0.26784941]
[1769850936966,0.012041,83183.0,83168.0,0.26784941]
[1769850937273,0.10832,83189.0,83168.0,0.27989241]
[1769850938360,0.2899897,83188.0,83168.0,0.26784941]
[1769850938565,0.012041,83182.0,83168.0,0.26784941]
[1769850939264,0.012041,83181.0,83165.0,0.10832]
[1769850939565,0.012042,83179.0,83163.0,0.27209631]
[1769850940357,0.012042,83178.0,83163.0,0.27209631]
[1769850941652,0.012042,83175.0,83160.0,0.00011831]
[1769850943366,0.012042,83175.0,83160.0,0.27381267]
[1769850944054,0.012042,83174.0,83160.0,0.00011831]
[1769850944258,0.28601037,83173.0,83160.0,0.00011831]
[1769850944856,0.29805337,83173.0,83160.0,0.00011831]
[1769850945261,0.012043,83169.0,83154.0,0.27369436]
[1769850946275,0.00013075,83168.0,83154.0,0.27369436]
[1769850947268,0.28601037,83191.0,83162.0,0.273654]
[1769850947462,0.012038,83204.0,83164.0,0.273654]
[1769850947463,0.28601037,83189.0,83164.0,0.273654]
[1769850947663,0.28601037,83187.0,83164.0,0.273654]
[1769850949070,0.001,83191.0,83170.0,0.012043]
[1769850949265,0.01204,83188.0,83171.0,0.27761046]
[1769850949458,0.10836,83190.0,83171.0,0.27761046]
[1769850949663,0.01204,83189.0,83171.0,0.27761046]
[1769850949968,0.10836,83190.0,83173.0,0.28965246]
[1769850951158,0.01204,83191.0,83173.0,0.28965246]
[1769850951765,0.01204,83194.0,83173.0,0.28965246]
[1769850951971,0.012039,83197.0,83179.0,0.012042]
[1769850952270,0.012039,83197.0,83180.0,0.28579315]
[1769850952974,0.120399,83201.0,83182.0,0.28252113]
[1769850953173,0.10836,83201.0,83182.0,0.29456213]
[1769850954073,0.012039,83200.0,83182.0,0.29456213]
[1769850954574,0.012039,83200.0,83182.0,0.28252113]
[1769850957474,0.10836,83201.0,83182.0,0.28252113]
[1769850959062,0.120398,83201.0,83182.0,0.28252113]
[1769850960671,0.06619485,83221.0,83181.0,0.120401]
[1769850960672,0.012035,83223.0,83200.0,0.012038]
[1769850960973,0.012036,83221.0,83201.0,0.28336827]
[1769850961179,0.10836,83224.0,83206.0,0.28336827]
[1769850962770,0.10836,83224.0,83208.0,0.27198051]
[1769850963277,0.28601037,83223.0,83197.0,0.10836]
[1769850963471,0.29804637,83219.0,83198.0,0.27198051]
[1769850963978,0.28601037,83214.0,83197.0,0.10836]
[1769850964178,0.28601037,83210.0,83197.0,0.06307196]
[1769850964369,0.28601037,83208.0,83197.0,0.06307196]
[1769850965776,0.28601037,83206.0,83187.0,0.69152]
[1769850966473,0.20537188,83197.0,83187.0,0.69152]
[1769850970879,0.41074376,83197.0,83187.0,0.69152]
[1769850971180,0.20537188,83197.0,83187.0,0.69152]
[1769850974776,0.2904265,83196.0,83187.0,0.10832]
[1769850974982,0.01204,83190.0,83176.0,0.63508]
[1769850975183,0.71321026,83190.0,83176.0,0.63508]
[1769850975378,0.2904265,83189.0,83176.0,0.63508]
[1769850975585,0.2904265,83187.0,83176.0,0.10832]
[1769850975886,0.2904265,83187.0,83168.0,0.58756]
[1769850976087,0.20537188,83178.0,83168.0,0.58756]
[1769850976481,0.20537188,83178.0,83166.0,0.10832]
[1769850978082,0.2904265,83177.0,83154.0,0.27554772]
[1769850978288,0.20537188,83164.0,83154.0,0.27554772]
[1769850978588,0.20537188,83164.0,83151.0,0.10832]
[1769850985597,0.20537188,83164.0,83151.0,0.38312108]
[1769850986296,0.20537188,83164.0,83151.0,0.10832]
[1769850990393,0.3024705,83163.0,83151.0,0.10832]
[1769850990588,0.20537188,83161.0,83151.0,0.10832]
[1769850990791,0.012045,83159.0,83151.0,0.10832]
[1769850991094,0.3024715,83159.0,83151.0,0.10832]
[1769850991300,0.3024715,83159.0,83132.0,0.003]
[1769850991301,0.012046,83150.0,83135.0,0.27615794]
[1769850991506,0.20537188,83145.0,83133.0,0.59332]
[1769850991800,0.20537188,83143.0,83133.0,0.59332]
[1769850992492,0.49579838,83143.0,83131.0,0.012048]
[1769850992692,0.49579838,83143.0,83109.0,0.65993044]
[1769850992693,0.2904265,83142.0,83125.0,0.27615794]
[1769850992896,0.20537188,83133.0,83126.0,0.50856]
[1769850993195,0.20537188,83133.0,83127.0,0.27615794]
[1769850993606,0.012047,83143.0,83127.0,0.27615794]
[1769850993900,0.005,83187.0,83127.0,0.27615794]
[1769850993901,0.20537188,83150.0,83141.0,0.27615794]
[1769850994197,0.20537188,83150.0,83141.0,0.87003794]
[1769850994585,0.49579838,83150.0,83139.0,0.10836]
[1769850994785,0.2904265,83149.0,83139.0,0.10836]
[1769850995191,0.012046,83147.0,83139.0,0.10836]
[1769850995392,0.012047,83145.0,83134.0,0.594]
[1769850995592,0.20537188,83144.0,83134.0,0.594]
[1769850995795,0.012047,83141.0,83123.0,0.27615794]
[1769850995988,0.012047,83139.0,83123.0,0.27615794]
[1769850996590,0.20537188,83140.0,83123.0,0.27615794]
[1769850996994,0.20537188,83140.0,83125.0,0.012049]
[1769850997197,0.20537188,83140.0,83126.0,0.29320406]
[1769850997590,0.20537188,83140.0,83114.0,0.00013052]
[1769850997591,0.28076911,83139.0,83114.0,0.00013052]
[1769850997791,0.28076911,83135.0,83116.0,0.29320406]
[1769850997990,0.20537188,83124.0,83118.0,0.29320406]
[1769850998399,0.20537188,83128.0,83118.0,0.29320406]
[1769850999599,0.20537188,83128.0,83118.0,0.29420406]
[1769851000301,0.20537188,83128.0,83118.0,0.001]
[1769851000492,0.20537188,83128.0,83118.0,0.28045439]
[1769851001000,0.20537188,83130.0,83118.0,0.28045439]
[1769851001394,0.20537188,83130.0,83118.0,0.27945439]
[1769851005001,0.012047,83143.0,83125.0,0.012049]
[1769851005298,0.012045,83159.0,83139.0,0.26916456]
[1769851005598,0.1084,83169.0,83139.0,0.26916456]
[1769851005599,0.120443,83169.0,83148.0,0.012046]
[1769851005805,0.012043,83169.0,83148.0,0.28121056]
[1769851005999,0.1084,83168.0,83148.0,0.28121056]
[1769851006203,0.012043,83169.0,83148.0,0.28121056]
[1769851006204,0.20537188,83160.0,83149.0,0.26916456]
[1769851006396,0.012043,83169.0,83149.0,0.26916456]
[1769851006599,0.36129304,83175.0,83149.0,0.26916456]
[1769851006600,0.20537188,83160.0,83149.0,0.26916456]
[1769851007601,0.012043,83167.0,83149.0,0.26916456]
[1769851008895,0.012043,83171.0,83151.0,0.26462391]
[1769851009104,0.29623353,83183.0,83161.0,0.26462391]
[1769851009302,0.012042,83180.0,83162.0,0.26462391]
[1769851009804,0.012041,83183.0,83163.0,0.012044]
[1769851010004,0.012041,83183.0,83164.0,0.26462391]
[1769851013111,0.012041,83183.0,83166.0,0.26717046]
[1769851018314,0.1084,83184.0,83166.0,0.26717046]
[1769851019416,0.01204,83194.0,83176.0,0.26741236]
[1769851019714,0.11373555,83193.0,83176.0,0.26741236]
[1769851019916,0.01204,83194.0,83176.0,0.26741236]
[1769851020107,0.11373363,83193.0,83176.0,0.26741236]
[1769851020310,0.01204,83194.0,83176.0,0.26741236]
[1769851020512,0.11372337,83193.0,83176.0,0.26741236]
[1769851020809,0.01204,83194.0,83176.0,0.26741236]
[1769851021011,0.11372337,83193.0,83176.0,0.26741236]
[1769851021207,0.01204,83194.0,83176.0,0.26741236]
[1769851022009,0.01204,83193.0,83176.0,0.26741236]
[1769851023815,0.012039,83194.0,83176.0,0.26741236]
[1769851024016,0.120396,83219.0,83192.0,0.26737144]
[1769851024213,0.012036,83217.0,83197.0,0.26737144]
[1769851024412,0.012036,83215.0,83197.0,0.26737144]
[1769851025115,0.012037,83213.0,83197.0,0.26737144]
[1769851028813,0.28514536,83213.0,83197.0,0.26737144]
[1769851029113,0.012037,83213.0,83197.0,0.26737144]
[1769851030514,0.27310836,83212.0,83192.0,0.10836]
[1769851030915,0.27310836,83209.0,83192.0,0.1204]
[1769851031419,0.27310836,83209.0,83192.0,0.3684898]
[1769851031618,0.27310836,83209.0,83193.0,0.012039]
[1769851033624,0.27310836,83209.0,83193.0,0.25904561]
[1769851035419,0.10836,83219.0,83197.0,0.24379907]
[1769851035618,0.012036,83217.0,83199.0,0.24379907]
[1769851035819,0.012036,83217.0,83202.0,0.24379907]
[1769851036014,0.10836,83219.0,83202.0,0.25583707]
[1769851036225,0.10836,83219.0,83205.0,0.25583707]
[1769851036926,0.10836,83219.0,83205.0,0.24379907]
[1769851038730,0.012036,83221.0,83205.0,0.24379907]
[1769851038930,0.012035,83224.0,83207.0,0.2375571]
[1769851040234,0.10832,83229.0,83209.0,0.2375571]
[1769851040436,0.10832,83229.0,83211.0,0.2375571]
[1769851040626,0.120354,83229.0,83211.0,0.2375571]
[1769851043433,0.10832,83229.0,83211.0,0.2375571]
[1769851043640,0.012035,83225.0,83211.0,0.2375571]
[1769851044139,0.012035,83225.0,83211.0,0.3458771]
[1769851044738,0.012035,83225.0,83212.0,0.24611247]
[1769851044937,0.012035,83228.0,83212.0,0.24611247]
[1769851046533,0.012035,83228.0,83211.0,0.120357]
[1769851046534,0.012034,83234.0,83216.0,0.24611247]
[1769851046730,0.012033,83237.0,83220.0,0.246377]
[1769851046935,0.120353,83239.0,83224.0,0.246377]
[1769851047238,0.012033,83237.0,83224.0,0.246377]
[1769851047440,0.10832,83239.0,83224.0,0.246377]
[1769851047640,0.012033,83238.0,83224.0,0.246377]
[1769851049341,0.10832,83239.0,83224.0,0.246377]
[1769851049536,0.120353,83239.0,83224.0,0.246377]
[1769851051234,0.10832,83239.0,83228.0,0.24212568]
[1769851054044,0.27310836,83238.0,83221.0,0.10832]
[1769851054249,0.28514236,83232.0,83221.0,0.10832]
[1769851054750,0.012034,83232.0,83221.0,0.10832]
[1769851055148,0.012034,83230.0,83221.0,0.10832]
[1769851055540,0.012034,83232.0,83221.0,0.10832]
[1769851055747,0.012034,83232.0,83222.0,0.24319845]
[1769851056139,0.012034,83232.0,83221.0,0.10832]
[1769851058650,0.012035,83227.0,83221.0,0.10271162]
[1769851058840,0.012035,83227.0,83214.0,0.24057691]
[1769851060260,0.012035,83227.0,83213.0,0.10832]
[1769851060752,0.012034,83229.0,83213.0,0.120357]
[1769851060951,0.11381811,83228.0,83214.0,0.2386372]
[1769851061154,0.29626586,83231.0,83214.0,0.2386372]
[1769851061351,0.11382217,83230.0,83214.0,0.2386372]
[1769851061546,0.012035,83226.0,83214.0,0.2386372]
[1769851064858,0.012035,83228.0,83214.0,0.2386372]
[1769851065055,0.012035,83226.0,83214.0,0.2386372]
[1769851065259,0.012035,83225.0,83214.0,0.23981976]
[1769851080567,0.10828,83231.0,83214.0,0.25185576]
[1769851080774,0.012033,83237.0,83223.0,0.23606809]
[1769851081072,0.012033,83237.0,83225.0,0.23606809]
[1769851081265,0.012033,83236.0,83225.0,0.23606809]
[1769851081673,0.012034,83235.0,83225.0,0.23606809]
[1769851083380,0.012034,83230.0,83216.0,0.2421254]
[1769851083677,0.27278556,83230.0,83214.0,0.2421254]
[1769851083866,0.012035,83226.0,83214.0,0.2421254]
[1769851084069,0.27278556,83230.0,83213.0,0.10832]
[1769851084274,0.27278556,83228.0,83213.0,0.10832]
[1769851085974,0.012035,83224.0,83213.0,0.10832]
[1769851089782,0.012035,83224.0,83214.0,0.24084538]
[1769851090173,0.012035,83224.0,83213.0,0.10832]
[1769851091483,0.012035,83224.0,83213.0,0.34931186]
[1769851091879,0.012033,83236.0,83221.0,0.24099186]
[1769851092183,0.1252627,83235.0,83221.0,0.24099186]
[1769851092377,0.120353,83237.0,83221.0,0.25302686]
[1769851092577,0.11322304,83236.0,83221.0,0.25302686]
[1769851092884,0.012034,83235.0,83221.0,0.24099186]
[1769851096292,0.120353,83237.0,83221.0,0.25302786]
[1769851096487,0.01764123,83237.0,83221.0,0.25302786]
[1769851097589,0.01764123,83237.0,83224.0,0.25068048]
[1769851097789,0.01764123,83237.0,83225.0,0.25068048]
[1769851100397,0.012033,83240.0,83225.0,0.25068048]
[1769851100789,0.29410631,83246.0,83225.0,0.25068048]
[1769851100790,0.012033,83238.0,83225.0,0.25068048]
[1769851103591,0.29410631,83240.0,83224.0,0.10828]
[1769851104000,0.012034,83233.0,83224.0,0.10828]
[1769851104295,0.10968373,83232.0,83224.0,0.10828]
[1769851104490,0.10968373,83231.0,83224.0,0.36060728]
[1769851104692,0.10968373,83230.0,83224.0,0.36060728]
[1769851104893,0.012034,83233.0,83224.0,0.36060728]
[1769851105093,0.10968285,83232.0,83224.0,0.10828]
[1769851105295,0.10968285,83231.0,83224.0,0.10828]
[1769851105589,0.10968285,83230.0,83224.0,0.36489427]
[1769851105896,0.012034,83233.0,83224.0,0.36489427]
[1769851106101,0.10968399,83232.0,83224.0,0.36489427]
[1769851106302,0.10968399,83231.0,83224.0,0.36489427]
[1769851106500,0.10968399,83230.0,83224.0,0.36489427]
[1769851106703,0.012034,83233.0,83224.0,0.36489427]
[1769851107002,0.10968528,83232.0,83225.0,0.25734569]
[1769851107201,0.10968528,83231.0,83225.0,0.25734569]
[1769851107403,0.10968528,83230.0,83225.0,0.25734569]
[1769851107596,0.20525611,83234.0,83225.0,0.25734569]
[1769851107795,0.10968692,83233.0,83225.0,0.25734569]
[1769851108094,0.10968692,83232.0,83225.0,0.25734569]
[1769851108290,0.10968692,83231.0,83225.0,0.25734569]
[1769851108495,0.10968692,83230.0,83225.0,0.25734569]
[1769851108696,0.21729011,83235.0,83225.0,0.25734569]
[1769851108897,0.10968896,83234.0,83225.0,0.25734569]
[1769851109098,0.10968896,83233.0,83225.0,0.25734569]
[1769851109298,0.10968896,83232.0,83225.0,0.25734569]
[1769851109500,0.10968896,83231.0,83225.0,0.25734569]
[1769851109701,0.10968896,83230.0,83225.0,0.25734569]
[1769851109904,0.21729011,83235.0,83225.0,0.25734569]
[1769851110207,0.1096914,83234.0,83225.0,0.25734569]
[1769851110405,0.1096914,83233.0,83224.0,0.10828]
[1769851110710,0.29410631,83229.0,83216.0,0.10828]
[1769851110907,0.20525611,83226.0,83216.0,0.10828]
[1769851111204,0.21729111,83226.0,83216.0,0.10828]
[1769851111405,0.10970591,83225.0,83216.0,0.10828]
[1769851111603,0.21729111,83226.0,83216.0,0.10828]
[1769851111801,0.10970588,83225.0,83216.0,0.10828]
[1769851112104,0.21729111,83226.0,83216.0,0.10828]
[1769851112303,0.1097052,83225.0,83216.0,0.10828]
[1769851112503,0.21729111,83226.0,83216.0,0.10828]
[1769851112699,0.1097052,83225.0,83216.0,0.10828]
[1769851112900,0.21729111,83226.0,83216.0,0.10828]
[1769851113106,0.10970523,83225.0,83216.0,0.10828]
[1769851113301,0.21729111,83226.0,83216.0,0.10828]
[1769851113500,0.10970498,83225.0,83216.0,0.10828]
[1769851113709,0.21729111,83226.0,83216.0,0.10828]
[1769851113907,0.10970498,83225.0,83216.0,0.10828]
[1769851114204,0.29410631,83216.0,83210.0,0.003]
[1769851114510,0.012037,83213.0,83199.0,0.10828]
[1769851114709,0.20525611,83209.0,83199.0,0.10828]
[1769851114900,0.21729311,83209.0,83199.0,0.37117613]
[1769851118097,0.21729311,83209.0,83199.0,0.10828]
[1769851119102,0.20525611,83209.0,83193.0,0.26722116]
[1769851119410,0.012038,83202.0,83193.0,0.26722116]
[1769851119800,0.20525611,83203.0,83193.0,0.26722116]
[1769851122807,0.523716,83216.0,83192.0,0.60868]
[1769851122808,0.29969408,83227.0,83202.0,0.06532905]
[1769851123106,0.10832,83229.0,83206.0,0.06532905]
[1769851123107,0.20525611,83220.0,83206.0,0.06532905]
[1769851123312,0.20525611,83216.0,83206.0,0.06532905]
[1769851130414,0.3,83210.0,83204.0,0.31696]
[1769851130922,0.012037,83211.0,83204.0,0.31696]
[1769851131115,0.012037,83211.0,83199.0,0.10832]
[1769851132117,0.20525611,83210.0,83199.0,0.10832]
[1769851133518,0.21729311,83210.0,83199.0,0.10832]
[1769851134519,0.10832,83218.0,83199.0,0.10832]
[1769851134710,0.012036,83215.0,83200.0,0.012039]
[1769851134916,0.40832,83218.0,83200.0,0.012039]
[1769851135722,0.3,83217.0,83200.0,0.012039]
[1769851136022,0.012037,83214.0,83200.0,0.012039]
[1769851136420,0.012037,83213.0,83199.0,0.10832]
[1769851136618,0.012037,83213.0,83199.0,0.120359]
[1769851137723,0.012037,83214.0,83201.0,0.012038]
[1769851137917,0.012037,83214.0,83199.0,0.10832]
[1769851138316,0.012037,83213.0,83199.0,0.10832]
[1769851138624,0.012037,83213.0,83199.0,0.120359]
[1769851142021,0.3,83202.0,83192.0,0.17966785]
[1769851142226,0.3,83202.0,83185.0,0.24037339]
[1769851142227,0.3,83200.0,83187.0,0.28798785]
[1769851142420,0.3,83200.0,83187.0,0.10832]
[1769851143228,0.012039,83197.0,83187.0,0.10832]
[1769851143627,0.312039,83199.0,83187.0,0.10832]
[1769851144626,0.312039,83196.0,83179.0,0.012042]
[1769851144826,0.20525611,83190.0,83179.0,0.012042]
[1769851145831,0.3,83193.0,83178.0,0.012042]
[1769851146023,0.20525611,83190.0,83178.0,0.012042]
[1769851147626,0.3,83193.0,83178.0,0.012042]
[1769851148431,0.31204,83190.0,83175.0,0.10832]
[1769851148726,0.3,83186.0,83175.0,0.10832]
[1769851148931,0.3,83174.0,83163.0,0.10832]
[1769851149931,0.012043,83171.0,83163.0,0.10832]
[1769851150522,0.312043,83171.0,83155.0,0.012045]
[1769851151929,0.012043,83171.0,83155.0,0.012045]
[1769851153128,0.012041,83181.0,83164.0,0.012044]
[1769851153329,0.012041,83182.0,83156.0,0.45464]
[1769851154130,0.012041,83181.0,83166.0,0.012043]
[1769851158633,0.10832,83183.0,83166.0,0.012043]
[1769851159835,0.3,83182.0,83166.0,0.012043]
[1769851160026,0.312041,83182.0,83166.0,0.012043]
[1769851164140,0.312041,83181.0,83166.0,0.012043]
[1769851164838,0.312042,83177.0,83165.0,0.10836]
[1769851165036,0.28446897,83170.0,83156.0,0.466685]
[1769851165237,0.28446897,83167.0,83156.0,0.10836]
[1769851167335,0.28446897,83165.0,83156.0,0.10836]
[1769851167545,0.28446897,83163.0,83146.0,0.10836]
[1769851167729,0.28446897,83157.0,83144.0,0.012047]
[1769851167935,0.28446897,83157.0,83141.0,0.012047]
[1769851168541,0.28446897,83155.0,83138.0,0.012048]
[1769851170632,0.28446897,83153.0,83133.0,0.10836]
[1769851170940,0.28446897,83141.0,83125.0,0.00013839]
[1769851171536,0.29651697,83138.0,83125.0,0.00013839]
[1769851171843,0.28446897,83138.0,83125.0,0.00013839]
[1769851172040,0.28446897,83138.0,83125.0,0.01218739]
[1769851172439,0.28446897,83138.0,83125.0,0.00013839]
[1769851173343,0.28446897,83151.0,83132.0,0.19622614]
[1769851173541,0.10836,83152.0,83137.0,0.20827414]
[1769851173737,0.10836,83152.0,83145.0,0.012046]
[1769851174043,0.85334897,83162.0,83145.0,0.012046]
[1769851174240,0.10836,83162.0,83145.0,0.20827214]
[1769851176438,0.012044,83161.0,83145.0,0.20827214]
[1769851176638,0.10836,83162.0,83147.0,0.012046]
[1769851176850,0.10836,83162.0,83147.0,0.20887245]
[1769851182955,0.10836,83162.0,83148.0,0.19331592]
[1769851185153,0.120404,83162.0,83148.0,0.19331592]
[1769851188454,0.28280519,83161.0,83147.0,0.012046]
[1769851189454,0.79616519,83171.0,83148.0,0.18609714]
[1769851189752,0.28280519,83171.0,83156.0,0.18609714]
[1769851190156,0.012043,83170.0,83156.0,0.18609714]
[1769851190556,0.29484819,83170.0,83154.0,0.012045]
[1769851191954,0.28280519,83167.0,83151.0,0.012046]
[1769851193949,0.29484819,83167.0,83151.0,0.012046]
[1769851195060,0.28280519,83161.0,83145.0,0.1084]
[1769851195251,0.28280519,83157.0,83145.0,0.1084]
[1769851195450,0.28280519,83153.0,83137.0,0.28742345]
[1769851195661,0.28280519,83153.0,83122.0,0.01205]
[1769851195662,0.28280519,83143.0,83129.0,0.012049]
[1769851196159,0.29485219,83143.0,83128.0,0.1084]
[1769851196562,0.29485219,83143.0,83128.0,0.120449]
[1769851197850,0.28280519,83140.0,83128.0,0.1084]
[1769851198253,0.28280519,83140.0,83125.0,0.01218739]
[1769851198254,0.012048,83137.0,83125.0,0.00013839]
[1769851198463,0.28280519,83136.0,83125.0,0.00013839]
[1769851201259,0.1084,83148.0,83133.0,0.28719307]
[1769851201452,0.012044,83160.0,83137.0,0.27514507]
[1769851201453,0.1084,83160.0,83137.0,0.27514507]
[1769851201664,0.012044,83165.0,83144.0,0.27514507]
[1769851201863,0.012041,83183.0,83153.0,0.27514507]
[1769851201864,0.1084,83176.0,83153.0,0.27514507]
[1769851202164,0.012042,83174.0,83157.0,0.012045]
[1769851202362,0.1084,83176.0,83158.0,0.27514507]
[1769851203067,0.1084,83176.0,83159.0,0.012044]
[1769851203866,0.1084,83176.0,83159.0,0.28718907]
[1769851204566,0.1084,83176.0,83159.0,0.012044]
[1769851206659,0.28280519,83175.0,83157.0,0.1084]
[1769851207764,0.27341586,83171.0,83157.0,0.1084]
[1769851209572,0.2569925,83170.0,83157.0,0.1084]
[1769851210368,0.53040836,83170.0,83157.0,0.1084]
[1769851211975,0.27341586,83169.0,83159.0,0.012044]
[1769851212274,0.27341586,83169.0,83158.0,0.012045]
[1769851212766,0.27341586,83169.0,83157.0,0.1084]
[1769851213964,0.28545886,83169.0,83157.0,0.1084]
[1769851214674,0.28545886,83169.0,83154.0,0.10836]
[1769851215673,0.27341586,83166.0,83154.0,0.10836]
[1769851216377,0.27341586,83164.0,83147.0,0.10836]
[1769851216568,0.27341586,83164.0,83138.0,0.29120169]
[1769851216569,0.27341586,83154.0,83140.0,0.17902345]
[1769851216882,0.27341586,83149.0,83137.0,0.120408]
[1769851225676,0.20567477,83147.0,83137.0,0.120408]
[1769851229382,0.012045,83153.0,83137.0,0.120408]
[1769851229580,0.27341586,83168.0,83149.0,0.29120169]
[1769851229884,0.20567477,83160.0,83152.0,0.012046]
[1769851230285,0.20567477,83160.0,83154.0,0.012045]
[1769851234388,0.27341586,83159.0,83154.0,0.012045]
[1769851234588,0.27341586,83159.0,83140.0,0.29120169]
[1769851234589,0.27341586,83159.0,83144.0,0.17912689]
[1769851234888,0.27341586,83152.0,83137.0,0.1084]
[1769851235092,0.27341586,83146.0,83137.0,0.1084]
[1769851235596,0.28546186,83146.0,83130.0,0.7254]
[1769851235893,0.20567477,83140.0,83130.0,0.737449]
[1769851237695,0.29695384,83147.0,83130.0,0.7254]
[1769851237992,0.1084,83150.0,83138.0,0.012048]
[1769851238388,0.29695384,83152.0,83138.0,0.012048]
[1769851238983,0.1084,83155.0,83143.0,0.012047]
[1769851239189,0.2571341,83170.0,83139.0,0.29694874]
[1769851239190,0.012044,83162.0,83145.0,0.012046]
[1769851239696,0.30022641,83162.0,83145.0,0.012046]
[1769851240398,0.28818241,83162.0,83147.0,0.012046]
[1769851242399,0.28818241,83162.0,83116.0,0.012051]
[1769851242586,0.28818241,83139.0,83118.0,0.01205]
[1769851242788,0.28818241,83139.0,83114.0,0.1084]
[1769851243095,0.28818241,83129.0,83108.0,0.012052]
[1769851243296,0.28818241,83127.0,83109.0,0.1084]
[1769851243504,0.28818241,83125.0,83109.0,0.1084]
[1769851243794,0.00011525,83124.0,83109.0,0.1084]
[1769851243995,0.28829766,83124.0,83109.0,0.1084]
[1769851244403,0.30034766,83124.0,83109.0,0.1084]
[1769851250115,0.28818241,83120.0,83109.0,0.1084]
[1769851255716,0.28818241,83118.0,83109.0,0.1084]
[1769851260211,0.28818241,83118.0,83104.0,0.012052]
[1769851261219,0.28818241,83118.0,83106.0,0.012052]
[1769851261618,0.28818241,83118.0,83103.0,0.012052]
[1769851261911,0.28818241,83114.0,83100.0,0.012053]
[1769851262118,0.28818241,83103.0,83086.0,0.10844]
[1769851262312,0.28832108,83102.0,83092.0,0.012054]
[1769851264416,0.28832108,83102.0,83089.0,0.012055]
[1769851269124,0.28832108,83102.0,83086.0,0.10844]
[1769851269125,0.21661621,83096.0,83086.0,0.10844]
[1769851269712,0.20456221,83096.0,83086.0,0.10844]
[1769851271120,0.00013867,83102.0,83086.0,0.10844]
[1769851271121,0.20456221,83094.0,83086.0,0.10844]
[1769851271625,0.20456221,83094.0,83077.0,0.43376]